Cogmind - Beta 13 @@@ ROGUE MODE // 2024.04.07 @ 18:50:15 Player: Bort Result: Destroyed by Y-45 Defender with Beam Rifle Performance ------------- Evolutions (1) 500 Regions Visited (2) 400 Robots Destroyed (9) 45 Value Destroyed (249) 249 Prototype IDs (0) 0 Alien Tech Used (0) 0 Bonus (0) 0 TOTAL SCORE: 1194 Bonus ------- None Cogmind --------- Core Integrity 0/400 Matter 300/300 Energy 100/100 System Corruption 0% Temperature Cool (15) Movement Core (200) Ox3 Location -9/Materials Parts ------- > --- POWER (2) -------- (None) > --- PROPULSION (2) --- (None) > --- UTILITY (3) ------ Medium Storage Unit Signal Interpreter Improved Targeting Computer > --- WEAPON (2) ------- (None) > --- INVENTORY (10) --- Aluminum Leg Aluminum Leg Peak State ------------ > --- POWER ------------ Light Ion Engine > --- PROPULSION ------- Aluminum Leg Aluminum Leg > --- UTILITY ---------- Medium Storage Unit Signal Interpreter Improved Targeting Computer > --- WEAPON ----------- Assault Rifle Assault Rifle > --- INVENTORY -------- (None) [Rating: 9] Favorites ----------- Power Light Ion Engine Engine Light Ion Engine Propulsion Aluminum Leg Leg Aluminum Leg Utility Medium Storage Unit Storage Medium Storage Unit Processor Signal Interpreter Weapon EM Pulse Gun Energy Gun EM Pulse Gun Ballistic Gun Assault Rifle Build | -11 -10 -9 ------- Run | Yrd Mat Mat Slots Evolved 2 | . . 2 Power 1 | . . 1 Propulsion . | . . . Utility 1 | . . 1 Weapon . | . . . Parts Attached 11 | 5 2 4 Power 2 | 1 . 1 Engine 2 | 1 . 1 Core . | . . . Reactor . | . . . Propulsion 2 | 2 . . Treads . | . . . Leg 2 | 2 . . Wheel . | . . . Hover . | . . . Flight . | . . . Utility 3 | . 2 1 Device . | . . . Storage 1 | . 1 . Processor 2 | . 1 1 Hackware . | . . . Protection . | . . . Artifact . | . . . Weapon 4 | 2 . 2 Energy Gun 2 | 2 . . Energy Cannon . | . . . Ballistic Gun 2 | . . 2 Ballistic Cannon . | . . . Launcher . | . . . Special Weapon . | . . . Impact Weapon . | . . . Slashing Weapon . | . . . Piercing Weapon . | . . . Special Melee Weapon . | . . . Unidentified Prototypes . | . . . Parts Lost 6 | . . 6 Power 2 | . . 2 Propulsion 2 | . . 2 Utility . | . . . Weapon 2 | . . 2 Highest Loss Streak 5 | . . 5 To Critical Strikes . | . . . Average Slot Usage (%) 89 | . 96 76 Engine 11 | . 14 7 Leg 24 | . 28 18 Storage 12 | . 14 11 Processor 14 | . 11 20 Energy Gun 18 | . 28 1 Ballistic Gun 6 | . . 16 Naked Turns . | . . . Heaviest Build 19 | 7 17 19 Greatest Support 20 | 20 20 20 Greatest Overweight (x) 3 | . . 3 Average Overweight (x) . | . . . Largest Inventory Capacity 10 | 5 10 10 Average Capacity 9 | 5 9 10 Most Carried 4 | 3 2 4 Average Carried . | . . . Final Capacity 10 | 5 10 10 Final Carried 2 | . 1 2 Class Distribution -------------------- 100% | Mutant Dominant Class ---------------- Mutant | -10/Materials Mutant | -9/Materials Resources | -11 -10 -9 ----------- Run | Yrd Mat Mat Matter Collected 361 | 250 20 91 Remotely . | . . . Salvage Created 302 | 45 60 197 Parts 23 | 4 4 15 Haulers Intercepted . | . . . Recyclers Shooed . | . . . Parts Field Recycled . | . . . Retrieved Matter . | . . . Parts Self-Destructed . | . . . Prevented . | . . . Kills | -11 -10 -9 ------- Run | Yrd Mat Mat Combat Hostiles Destroyed 8 | 1 3 4 Guns 8 | 1 3 4 Classes Destroyed 4 | 1 2 1 Watcher 1 | . 1 . Swarmer 3 | . 3 . Grunt 2 | 1 . 1 Sentry 3 | . . 3 Best Kill Streak 3 | 1 3 3 Combat Bots Only 3 | 1 3 3 Max Kills in Single Turn 1 | 1 1 1 Gunslinging . | . . . Exploded . | . . . Melee . | . . . Uniques/NPCs Destroyed . | . . . Combat | -11 -10 -9 -------- Run | Yrd Mat Mat Hostile Shots Fired 133 | 7 27 99 Missed 37 | 2 8 27 Damage Taken 1089 | 55 134 900 Core 436 | 10 21 405 Absorbed by Shields . | . . . Core Remaining (%) 91 | 96 87 . Volleys Fired 32 | 5 9 18 Largest 2 | 2 2 2 Hottest 90 | 90 90 40 Shots Fired 63 | 10 18 35 Gun 63 | 10 18 35 Cannon . | . . . Launcher . | . . . Special . | . . . Kinetic 35 | . . 35 Thermal 14 | 5 9 . Explosive . | . . . Electromagnetic 14 | 5 9 . Robot Hit Streak 7 | 5 7 7 Robot Miss Streak 7 | 2 7 2 Penetration Max . | . . . Secondary Targets . | . . . Shots Hit Robots 34 | 6 7 21 Core Hits 20 | 2 4 14 Critical Kills . | . . . Critical Parts Destroyed . | . . . Critical Strikes 1 | . 1 . Burn 1 | . 1 . Melee Attacks . | . . . Impact . | . . . Slashing . | . . . Piercing . | . . . Sneak Attacks . | . . . Combat Hostiles . | . . . Follow-up Attacks . | . . . Damage Inflicted 498 | 78 111 309 Guns 483 | 78 111 294 Cannons . | . . . Explosions . | . . . Melee . | . . . Ramming 15 | . . 15 Kinetic 294 | . . 294 Thermal 98 | 24 74 . Explosive . | . . . Electromagnetic 91 | 54 37 . Impact . | . . . Slashing . | . . . Piercing . | . . . Highest Corruption . | . . . Average Corruption . | . . . Corruption Purged . | . . . Corruption Blocked . | . . . Overload Shots . | . . . Overflow Damage . | . . . Projectiles . | . . . Explosions . | . . . Melee . | . . . Knockbacks . | . . . Impact . | . . . Kinetic . | . . . Secondary . | . . . Self-Inflicted Damage 3 | . . 3 Shots . | . . . Rammed 5 | . . 5 Targets Rammed 10 | . . 10 Kicked 5 | . . 5 Crushed . | . . . Highest Temperature 180 | 180 172 17 Average Temperature 86 | 93 87 8 Received Heat Transfer 420 | 30 . 390 Siege Activations . | . . . Robots Corrupted . | . . . Combat Hostiles . | . . . Parts Fried . | . . . Impact Corruptions . | . . . Robots Melted . | . . . Combat Hostiles . | . . . Parts Melted . | . . . Heat Transferred 370 | 74 296 . Parts Sabotaged . | . . . Parts Stolen . | . . . Parts Stripped . | . . . Power Chain Reactions . | . . . Alert | -11 -10 -9 ------- Run | Yrd Mat Mat Peak Influence 120 | 20 120 120 Initial 13 | . 13 . Average 35 | 4 42 35 Maximum Alert Level . | . . . Low Security (%) 100 | 100 100 100 Level 1 . | . . . Level 2 . | . . . Level 3 . | . . . Level 4 . | . . . Level 5 . | . . . High Security . | . . . Max Security . | . . . Squads Dispatched 1 | . . 1 Investigation 1 | . . 1 Extermination . | . . . Reinforcement . | . . . Assault . | . . . Garrison . | . . . Intercept . | . . . Searches Triggered . | . . . Construction Impeded . | . . . Haulers Reinforced . | . . . Active Scanning Responses . | . . . Cargo Convoy Interrupts . | . . . Stealth | -11 -10 -9 --------- Run | Yrd Mat Mat Distress Signals 2 | . . 2 Communications Jammed . | . . . Distress Signals . | . . . Times Spotted 18 | 1 6 11 Peak Tracking Total 7 | 1 4 7 Tactical Retreats . | . . . Traps | -11 -10 -9 ------- Run | Yrd Mat Mat Traps Triggered 1 | . . 1 Indirectly . | . . . Trap Hack Attempts . | . . . Triggered . | . . . Disarmed . | . . . Reprogrammed . | . . . Reused . | . . . Traps Extracted . | . . . Installed . | . . . Triggered . | . . . Machines | -11 -10 -9 ---------- Run | Yrd Mat Mat Machines Disabled . | . . . Max in Single Turn . | . . . Machines Repaired . | . . . Machines Dismantled . | . . . Machines Sabotaged . | . . . Overloaded Fab Kills . | . . . Hacking | -11 -10 -9 --------- Run | Yrd Mat Mat Machines Accessed 3 | . 2 1 Terminals 2 | . 1 1 Fabricators . | . . . Repair Stations . | . . . Recycling Units 1 | . 1 . Scanalyzers . | . . . Garrison Access . | . . . Total Hacks 6 | . 4 2 Successful 4 | . 3 1 Failed 2 | . 1 1 Catastrophic . | . . . Database Lockouts . | . . . Manual . | . . . Terminals 4 | . 2 2 Fabricators . | . . . Repair Stations . | . . . Recycling Units 2 | . 2 . Scanalyzers . | . . . Garrison Access . | . . . Terminal Hacks 2 | . 1 1 Record 1 | . . 1 Alert Level 1 | . 1 . Fabricator Hacks . | . . . Repair Station Hacks . | . . . Recycling Unit Hacks 2 | . 2 . Process 2 | . 2 . Scanalyzer . | . . . Garrison Access Hacks . | . . . Unauthorized Hacks . | . . . Terminals . | . . . Fabricators . | . . . Repair Stations . | . . . Recycling Units . | . . . Scanalyzers . | . . . Garrison Access . | . . . Data Cores Recovered . | . . . Used . | . . . Hacking Detections 2 | . 1 1 Full Trace Events . | . . . Feedback Events . | . . . Feedback Blocked . | . . . Robot Schematics Acquired . | . . . Robots Built . | . . . Authchips . | . . . Time . | . . . Total Robot Build Rating . | . . . Part Schematics Acquired . | . . . Parts Built . | . . . Authchips . | . . . Time . | . . . Total Part Build Rating . | . . . Parts Repaired . | . . . Time . | . . . Parts Recycled . | . . . Recycled Matter 110 | . 110 . Retrieved Matter . | . . . Retrieved Components . | . . . Parts Scanalyzed . | . . . Part Schematics Acquired . | . . . Parts Damaged . | . . . Bothacking | -11 -10 -9 ------------ Run | Yrd Mat Mat Used RIF Installer . | . . . Robots Hacked . | . . . Non-combat . | . . . Combat . | . . . Robot Hacks Applied . | . . . Relay Couplers Released . | . . . Fabnet Peak Effective % . | . . . Robots Rewired . | . . . Allies Hacked . | . . . Hacks Repelled . | . . . Allies | -11 -10 -9 -------- Run | Yrd Mat Mat Total Allies . | . . . Largest Group . | . . . Highest-Rated Group . | . . . Highest-Rated Ally . | . . . Total Orders . | . . . Ally Attacks . | . . . Total Damage . | . . . Kills . | . . . Allies Corrupted . | . . . Allies Melted . | . . . Intel | -11 -10 -9 ------- Run | Yrd Mat Mat Robot Analysis Total . | . . . Derelict Logs Recovered . | . . . Drone Launches . | . . . Drone Recoveries . | . . . Exploration | -11 -10 -9 ------------- Run | Yrd Mat Mat Turns Passed 879 | 100 491 288 Spaces Moved 591 | 78 354 159 Core 31 | 25 . 6 Treads . | . . . Legs 560 | 53 354 153 Wheels . | . . . Hover . | . . . Flight . | . . . Fastest Speed 50 | 50 120 120 Average Speed 118 | 97 120 126 Slowest Speed 200 | 120 120 200 Overloaded Moves . | . . . Propulsion Burnouts . | . . . Robots Hopped . | . . . Cave-ins Triggered . | . . . Exploration Rate (%) 24 | 6 43 24 Regions Visited 2 Branch Regions . Pre-discovered Areas . | . . . Known Exits Taken 1 | . 1 . Unknown Exits Taken 1 | 1 . . Scrap Searched . | . . . Spaces Dug . | . . . Terrain Destroyed . | . . . Melee . | . . . Projectile . | . . . AOE . | . . . Terrain Rammed . | . . . Walls Destroyed . | . . . Machines Disabled . | . . . Actions | -11 -10 -9 --------- Run | Yrd Mat Mat Total 696 | 92 402 202 Wait 33 | . 33 . Move 589 | 77 353 159 Hop . | . . . Pick Up 16 | 5 4 7 Fast Attach . | . . . Attach 11 | 5 2 4 Detach . | . . . Swap . | . . . Drop 5 | . 1 4 Fire 32 | 5 9 18 Melee . | . . . Ram 5 | . . 5 Kick 5 | . . 5 Crush . | . . . Escape Stasis . | . . . Rewire . | . . . Trap . | . . . Miscellaneous . | . . . Route ------- -11/Scrapyard -10/Materials (discovered 3 exits: *Mat / *Min x2) -9/Materials (discovered 1 exit: [*Min]) History --------- Turn | Location | Event 2 | -11/Scrapyard | Met Revision 17 61 | -11/Scrapyard | Discovered new exit (range 8) 101 | -11/Scrapyard | Entered Materials 317 | -10/Materials | Build established: Mutant 390 | -10/Materials | Discovered new exit (range 16) 390 | -10/Materials | Discovered new exit (range 14) 437 | -10/Materials | Discovered new exit (range 16) 528 | -10/Materials | Identified exit to Mines 590 | -10/Materials | Identified exit to Materials 592 | -10/Materials | Entered another Materials area 592 | -9/Materials | Evolved 2 slots: Power x1, Utility x1 799 | -9/Materials | Discovered new exit (range 16) 855 | -9/Materials | Core integrity fell below 50% 878 | -9/Materials | Core integrity fell below 20% 880 | -9/Materials | Destroyed by Y-45 Defender with Beam Rifle Last Messages --------------- 00837_ Assault Rifle destroyed. 00845_ K-01 Serf cleans the Hadron Collector. 00845_ U-05 Engineer lays Concrete. 00847_ Kicked G-34 Mercenary. 00848_ U-05 Engineer lays Concrete. 00849_ Kicked G-34 Mercenary. 00849_ U-05 Engineer lays Concrete. 00850_ K-01 Serf collects debris. 00850_ U-05 Engineer lays Concrete. 00851_ Kicked G-34 Mercenary. 00851_ U-05 Engineer lays Concrete. 00853_ Kicked G-34 Mercenary out of the way. 00855_ Kicked G-34 Mercenary. 00856_ Aluminum Leg destroyed. 00856_ Slammed into G-34 Mercenary. 00866_ Ion Engine destroyed. 00866_ Slammed into G-34 Mercenary. 00866_ Destabilizing: System interference. 00866_ Imp. Targeting Computer temporarily disabled. 00872_ M-13 Machinist repairs G-34 Mercenary. Map ----- +----------------------------------------------------+ | ???????????????????????????? #????# ####### | | ??????????????????????????? #????# # | | ??????????????????????????# [ #????# #""" | | ??????????????????????????# #??### #""" | | ??????????????????????????# """ = #??# #""" | | ??????????????????????????# """ #??# + | | ??????????????????????????? """ "T" ???# #""" | | ????????????????????????????? ?????# #""" | | ?????????????????###########?##/######## #""" | | ?????????????????# =!! "T" # %! # | | ????????????????# =!! =#! = !% ####### | | ?????????????????# =! !+ = T + | | ?????????????????# """"!#[ # """ | | ??????????????????? ? """" # # """ | | ??????????????????????? """"?# # """ | | ??????????????????????? ?# # | | ???????????????????????####??# # | | ??????????????????????????######+## ############ | | ??????????????????????????# # #??????????? | | ??????????????????????????# # #??????????? | | ??????????????????????????# """ #[% #??????????? | | ??????????????????????????# """ # #??????????? | | ??????????????????????????# """ # #??????????? | | ???????????????????##+#############% #??????? #?? | | ???????????????????# g #??? #?? | | ???????????????????# @ %% # / ? | | ???????????????????# """" ggm /Y ????? | | ???????????????????# """" g # ??????? | | ????????????????? """" u## #??????????? | | ??????????????? # """#???????? | | ??????????????# t # "#???????? | | ????????????????? # |"#???????? | | ?????????????????? ##+###### < ""#???????? | | ???????????????????## #### ?????# |"#???????? | | ????????????????????# ???# [?????# "#???????? | | ?????????????????????????# ?????# """#???????? | | ?????????????????????????#==?????## ####???????? | | ?????????????????????????#=???????? #??????????? | | ?????????????????????????#=???????? #??????????? | | ?????????????????????????##???????? #??????????? | | ??????????????????????????????????? #??????????? | | ??????????????????????????????????? #??????????? | | ??????????????????????????????????? ???????????? | | ?????????????????????????????????????????????????? | | ?????????????????????????????????????????????????? | | ?????????????????????????????????????????????????? | | ?????????????????????????????????????????????????? | | ?????????????????????????????????????????????????? | | ?????????????????????????????????????????????????? | | ?????????????????????????????????????????????????? | +----------------------------------------------------+ Best States ------------- Heat Dissipation 28 Energy Generation 10 Energy Capacity 250 Matter Stores 300 Matter Capacity 300 Sight Range 16 Terrain Scan Density 10 Evasion (%) 55 Targeting Accuracy 6 Item Schematics ----------------- None Robot Schematics ------------------ None Fabricated ------------ Nothing Alien Tech Used ----------------- None Achievements -------------- None Challenges ------------ None Game ------ Seed TacticalTiamatDissipator Manual? 0 Play Time 00:11:42 Cumulative 1.7 hours Start 2024.04.07 @ 18:40:07 End 2024.04.07 @ 18:50:15 Sessions 1 Manual Loads 0 Difficulty Rogue Special Mode None Game No. 3 Rogue 3 Adventurer 0 Explorer 0 Win Type - Total 0 Types 0/0/0/0/0/0/0/0/0 Lore% 3 Gallery% 6 Achievement% 7 Wizard Run 0 Options --------- Layout 2 ASCII 0 Keyboard 0 Movement Numpad Keybinds 0 Fullscreen 1 Font 24/Terminus Map View 38x22 Zoom Use 84% Tactical HUD 1 Map Filters NONE Filters NONE Steam 1 RUN: b87cfe67-4647-4fc4-b3ee-d199d16d3072